Workbook

Sheet Page 1 (Intro)
E1: CENTRE DE RECHERCHE DE PEDAGOGIE ACTIVE DENIS COUTROT
B2: Madame, Monsieur,
B4: Les renseignements que vous allez saisir dans ce questionnaire vous permettront de vous donner une estimation des frais annuels (scolarité, restauration, fournitures pédagogiques, accueil au centre de loisirs) afin que vous puissiez voir l'impact sur votre budget.
B6: Pour avoir une estimation la plus précise possible, veillez à bien saisir toutes les informations demandées.
B8: Les montants des différents frais de l'année scolaire 2024/2025 ne sont pas encore fixés. Le Conseil d'Administration votera les augmentation en avril/mai 2025 après la validation du budget prévionnel. Dans ce fichier de simulation, l'augmentation par rapport à l'année scolaire 2023/2024 a été estimée à 3,0 %.
B10: Cette estimation ne présage pas des frais réels que vous aurez à payer si vous inscrivez un ou plusieurs enfants à l'École Nouvelle d'Antony.
B12: Le montant réel sera fonction du calcul effectué au début de l'année scolaire et qui dépendra de vos ressources et de vos charges saisies dans le portail famille (système en ligne) à cette période ainsi que des justificatifs fournis. Si les justificatifs ne sont pas transmis (par choix ou omission), c'est le montant le plus élevé de la scolarité qui sera appliqué.
H14: Pour le Conseil d’Administration
H15: Le (la) Trésorier (ière) du CRPA
B18: Précisions :
B19: Le quotient familial (QF), qui détermine le montant de la scolarité de l'École et le coût à l'heure du Centre de Loisirs, n'utilise pas les mêmes règles de calcul du nombre de parts que celles de l'Administration Fiscale.
B20: Pour la restauration scolaire, trois possibilités : - L'enfant est externe, il prend son repas à la maison. Il est récupéré à la sortie des cours et ramené avant le début des cours. - L'enfant est demi-pensionnaire, il prend le repas du traiteur. Le coût comprend la surveillance du temps de midi et le prix du repas du traiteur {voir onglet 'Page 4 (Grilles)'}. - L'enfant amène le repas de la maison. Le coût comprend uniquement le prix de la surveillance du temps de midi.
B21: Le Centre de Loisirs (CLAE) est facturé à l'unité (~ 1 heure) ; le coût de l'unité est variable suivant le QF (5 niveaux). Les factures sont indépendantes de celle de l'École (scolarité, restauration et founitures pédagogiques). Elles sont établies, en fin de période scolaire, avec un coût à la semaine intégrant des réductions qui augmentent en fonction de la fréquentation. Il y a 5 périodes scolaires : 1- De la rentrée aux vacances de Toussaint (7 semaines) 2- Du retour des vacances de la Toussaint aux vacances de Noël (6 à 7 semaines) 3- De janvier aux vacances d'hiver (5 à 7 semaines) 4- Du retour des vacances d'hiver aux vacances de printemps (5 à 7 semaines) 5- Du retour des vacances de printemps aux vacances d'été (7 à 9 semaines). L'onglet 'Page 4 (Grilles)' donne le prix de l'unité en fonction du QF et vous précise le pourcentage de réduction en fonction de la fréquentation (nombre d'unités par semaine).
B24: CRPA - 4-6 Avenue d’Alembert – 92160 ANTONY
B25: Téléphone 01 43 50 13 83 - Mél : inscription@ecolenouvelle.fr
B26: SIRET 785 272 071 00016 - APE 801 Z

Sheet Page 2 (Renseignements)
D1: CENTRE DE RECHERCHE DE PEDAGOGIE ACTIVE DENIS COUTROT
C3: ÉCOLE NOUVELLE D'ANTONY
C4: 4-6 Avenue d'ALEMBERT 92160 ANTONY
C6: ="Année Scolaire "&AnSN1 -> Année Scolaire 2024/2025
C8: ÉLÉMENTS POUR LE CALCUL DU NOMBE DE PARTS
C11: Quel est le nombre d'adultes au sein du foyer : | H11: =IF(AND(NbAdulte="",NbEnfant>0,NbEnfENA>0),"Saisie à effectuer !","") -> 
C12: La famille est-elle monoparentale (1/2 part en plus) | H12: =IF(AND(NbAdulte>0,FamilleMonoP=""),"Saisie à effectuer !","") -> 
C13: Combien d'enfant(s) dans la famille : | H13: =IF(AND(NbAdulte>0,NbEnfant=""),"Saisie à effectuer !","") -> 
C14: Combien d'enfant(s) fréquenteront l'École Nouvelle d'Antony : | H14: =IF(AND(NbEnfant<>"",NbEnfENA=""),"Saisie à effectuer !",IF(NbEnfENA>NbEnfant,"Erreur de saisie !!!","")) -> 
C15: Y-a-t-il au sein de la famille un enfant handicapé (1/2 part en plus) | H15: =IF(AND(NbAdulte>0,EnfMDPH="",NbEnfant>0),"Saisie à effectuer !","") -> 
B18: ÉLÉMENTS POUR LE COÛT DE LA RESTAURATION
C21: ="Quel est le nombre d'enfant(s) présent(s) sur le temps méridien :" -> Quel est le nombre d'enfant(s) présent(s) sur le temps méridien : | H21: =IF(NbEnfENA<NbEnfTm,"Erreur de saisie !!!","") -> 
C22: ="Par déduction, nombre d'enfant"&IF(NbEnfENA-NbEnfTm>1,"s externes"," externe")&" (Repas pris à la maison) :" -> Par déduction, nombre d'enfant externe (Repas pris à la maison) : | H22: =IF(NbEnfENA="","",IF(NbEnfTm="","",IF(NbEnfENA-NbEnfTm<0,"Nbre incohérent !!",""))) ->  | I22: =IF(NbEnfENA="","",IF(NbEnfTm="","",NbEnfENA-NbEnfTm)) -> 
C23: Quel est le nombre d'enfant(s) prenant le repas du traiteur : | H23: =IF(AND(NbEnfTm>0,NbEnfRepas=""),"Saisie à effectuer !",IF(NbEnfRepas>NbEnfTm,"Erreur de saisie !!!","")) -> 
C24: Par déduction, nombre d'enfant(s) amenant leur repas de la maison) : | H24: =IF(NbEnfENA="","",IF(NbEnfTm="","",IF(NbEnfTm-NbEnfRepas<0,"Nbre incohérent !!",""))) ->  | I24: =IF(NbEnfENA="","",IF(NbEnfTm="","",IF(NbEnfTm-NbEnfRepas<0,"",NbEnfTm-NbEnfRepas))) -> 
B27: ÉLÉMENTS POUR LE COÛT DU CENTRE DE LOISIRS
C30: =IF(NbEnfENA>1,"Les enfants fréquenteront-ils","L'enfant fréquentera t-il")&" le Centre de Loisirs ?" -> L'enfant fréquentera t-il le Centre de Loisirs ?
C31: =IF(NbEnfENA=0,IF(CacCLAE=TRUE,"Manque la saisie du nombre d'enfant(s) qui fréquentera à l'École !!",""),IF(CacCLAE=FALSE,"Pas de fréquentation du Centre de Loisirs","En moyenne sur une semaine, "&IF(NbEnfCL>1,"chaque ","l'")&"enfant fréquentera le Centre de Loisirs :")) -> 
C32: - Nombre de matin (1 unité) [sur 5 jours - de 8 h à 9 h avant la classe] : | H32: =IF(NbEnfENA="","",IF(AND(NbEnfCL>=1,I32="",CacCLAE=TRUE),"Saisie à effectuer !","")) -> 
C33: - Nombre de soir (2 unités) [sur 4 jours - de 16 h 15 à 18 h 20] : | H33: =IF(NbEnfENA="","",IF(AND(NbEnfCL>=1,I33="",CacCLAE=TRUE),"Saisie à effectuer !","")) -> 
C34: - Le mercredi midi (2 unités) [de 12 h à 13 h 30 après la classe] : | H34: =IF(NbEnfENA="","",IF(AND(NbEnfCL>=1,I34="",CacCLAE=TRUE),"Saisie à effectuer !","")) -> 
C35: * Le repas du traiteur sera-t-il pris le midi ? ('non' = repas maison) | H35: =IF(NbEnfENA="","",IF(AND(NbEnfCL>=1,I35="",CacCLAE=TRUE),"Saisie à effectuer !","")) -> 
C36: - Le mercredi après-midi (5 unités) [de 13 h 30 à 18 h 20] : | H36: =IF(NbEnfENA="","",IF(AND(NbEnfCL>=1,I36="",CacCLAE=TRUE),"Saisie à effectuer !","")) -> 
H38: Nombre d'unités à la semaine (par enfant) : | I38: =IF(AND(I32=0,I33=0,I34=0,I36=0),"---",SUM(I32*1,I33*2,I34*2,I36*5)) -> ---
B42: CRPA - 4-6 Avenue d’Alembert – 92160 ANTONY
B43: Téléphone 01 43 50 13 83 - Mél : inscription@ecolenouvelle.fr
B45: SIRET 785 272 071 00016 - APE 801 Z

Sheet Page 3 (Budget)
D1: CENTRE DE RECHERCHE DE PEDAGOGIE ACTIVE DENIS COUTROT
C4: NOMBRE DE PARTS CALCULÉ ET BUDGET
D6: Nombre de Part Calculé : | F6: =NbPart ->  | I6: Ressources moins Charges : | J6: =IF(ValForm=0,"",IF(TotalA="---","Saisie Ress. !",IF(TotalB="---","Saisie Char. !",IF(TotalA-TotalB<0,"Erreur Saisie !",TotalA-TotalB)))) -> 
C9: A- RESSOURCES DE LA FAMILLE
H11: 1er Responsable | I11: 2è Responsable | J11: Autre Personne
C14: (Pour chaque personne mentionnée dans la famille)
C15: ="1- REVENU IMPOSABLE DE L'ANNÉE "&LEFT(AnSN,4)-1 -> 1- REVENU IMPOSABLE DE L'ANNÉE 2022
C16: =" Tel que mentionné sur l'avis d'imposition du foyer établi en "&LEFT(AnSN1,4)-1 -> Tel que mentionné sur l'avis d'imposition du foyer établi en 2023
C17: 2- ALLOCATIONS FAMILIALES
C18: Versées par la CAF aux familles avec 2 enfants (fonction des ressources)
C19: 3- SUPPLÉMENT FAMILIAL
C20: Versé à un agent public qui a un enfant de moins de 20 ans.
C21: 4- ALLOCATIONS DIVERSES
C22: Reçues de la part de votre employeur ou autre prestataire.
C23: 5- PENSIONS
C24: Autres que celles figurant dans le reveu imposable…
I26: TOTAL A | J26: =IF(ValForm=0,"---",IF(SUM(H13:J25)=0,"---",SUM(H13:J25))) -> ---
C29: B- CHARGES DE LA FAMILLE
H31: 1er Responsable | I31: 2è Responsable | J31: Autre Personne
C34: (Pour chaque personne mentionnée dans la famille)
C35: ="6- IMPÔT SUR LE REVENU NET "&LEFT(AnSN,4)-1 -> 6- IMPÔT SUR LE REVENU NET 2022
C36: =" Tel que mentionné sur l'avis d'imposition "&LEFT(AnSN,4) -> Tel que mentionné sur l'avis d'imposition 2023
C37: 7- FRAIS DE GARDE DES ENFANTS
C38: =" Montant retenu sur l'avis d'imposition "&LEFT(AnSN,4) -> Montant retenu sur l'avis d'imposition 2023
C39: 8- PENSIONS ALIMENTAIRES
C40: Versées à votre conjoint en cas de divorce ou de séparation.
C41: 9- FRAIS DE SCOLARITÉ PAYES A L'ECOLE NOUVELLE
C42: =" Montant de la scolarité payé en "&AnSN -> Montant de la scolarité payé en 2023/2024
C43: =" Déduction faite lors de la 2ème année scolaire." -> Déduction faite lors de la 2ème année scolaire.
I45: TOTAL B | J45: =IF(ValForm=0,"---",IF(COUNTA(H35:J43)=0,"---",SUM(H35:J44))) -> ---
C51: CRPA - 4-6 Avenue d’Alembert – 92160 ANTONY
C52: Téléphone 01 43 50 13 83 - Mél : inscription@ecolenouvelle.fr

Sheet Page 4 (Grilles)
D1: CENTRE DE RECHERCHE DE PEDAGOGIE ACTIVE DENIS COUTROT
B3: GRILLE DES FRAIS DE SCOLARITE
B4: A L'ÉCOLE NOUVELLE D'ANTONY
B6: Quotient Familial (QF) = | F6: TOTAL A - TOTAL B | H6: =IF(ValResCha=1,"=","") ->  | I6: =IF(ValResCha=1,TotalA&" (A)"&" - "&TotalB&" (B)","") ->  | K6: =IF(ValResCha=1," = "&QF,"") -> 
F7: Nombre de Parts | I7: =IF(ValResCha=1,NbPart&" (Nombre de Parts)","") -> 
K8: =IF(ValResCha=1,"Tranche (à confirmer) : "&Tranche&" ","") -> 
K9: =IF(ValResCha=1,"Tarif de la scolarité annuelle (à confirmer) pour "&NbEnfENA&" Enfant"&IF(NbEnfENA>1,"s","")&" : "&ROUND(CoutSco*CoeffSco,0)&" € "," ") -> 
B11: ="ESTIMATION : ANNÉE SCOLAIRE "&AnSN1 -> ESTIMATION : ANNÉE SCOLAIRE 2024/2025
C12: TRANCHE | E12: QUOTIENT FAMILIAL (QF) | I12: TARIF
E13: Mini | G13: Maxi | I13: (Annuel) | J13: (En 3 Fois) | K13: (En 10 Fois)
C14: A | E14: =Donnees!Q28 -> De 1 € | G14: =Donnees!R28 -> 4685 | I14: =ROUND(J14*3,0) -> 585 | J14: =Donnees!T28 -> 195 | K14: =ROUND(3*J14/10,1) -> 58.5
C15: B | E15: =Donnees!Q29 -> 4686 | G15: =Donnees!R29 -> 5691 | I15: =ROUND(J15*3,0) -> 834 | J15: =Donnees!T29 -> 278 | K15: =ROUND(3*J15/10,1) -> 83.4
C16: C | E16: =Donnees!Q30 -> 5692 | G16: =Donnees!R30 -> 6837 | I16: 1116 | J16: =Donnees!T30 -> 372 | K16: 111.6
C17: D | E17: =Donnees!Q31 -> 6838 | G17: =Donnees!R31 -> 7984 | I17: 1398 | J17: =Donnees!T31 -> 466 | K17: 139.8
C18: E | E18: =Donnees!Q32 -> 7985 | G18: =Donnees!R32 -> 9117 | I18: 1701 | J18: =Donnees!T32 -> 567 | K18: 170.1
C19: F | E19: =Donnees!Q33 -> 9118 | G19: =Donnees!R33 -> 10740 | I19: 1980 | J19: =Donnees!T33 -> 660 | K19: 198
C20: G | E20: =Donnees!Q34 -> 10741 | G20: =Donnees!R34 -> 12483 | I20: 2355 | J20: =Donnees!T34 -> 785 | K20: 235.5
C21: H | E21: =Donnees!Q35 -> 12484 | G21: =Donnees!R35 -> 14597 | I21: 2637 | J21: =Donnees!T35 -> 879 | K21: 263.7
C22: I | E22: =Donnees!Q36 -> 14598 | G22: =Donnees!R36 -> 17050 | I22: 2991 | J22: =Donnees!T36 -> 997 | K22: 299.1
C23: J | E23: =Donnees!Q37 -> 17051 | G23: =Donnees!R37 -> 20070 | I23: 3396 | J23: =Donnees!T37 -> 1132 | K23: 339.6
C24: K | E24: =Donnees!Q38 -> 20071 | G24: =Donnees!R38 -> 23421 | I24: 3708 | J24: =Donnees!T38 -> 1236 | K24: 370.8
C25: L | E25: =Donnees!Q39 -> Plus de 23 421 € | I25: 4128 | J25: =Donnees!T39 -> 1376 | K25: 412.8
C26: Prix de la Restauration Scolaire | I26: 1314 | J26: =Donnees!T40 -> 438 | K26: 131.4
C27: Ou de la Surveillance du Repas uniquement | I27: 606 | J27: =Donnees!T41 -> 202 | K27: 60.6
C28: Fournitures Pédagogiques | I28: 63 | J28: =Donnees!T42 -> 21 | K28: 6.3
C29: Nota : Le prix de la scolarité indiqué pour les QF A à L est le coût pour un enfant inscrit à l’École. Pour deux enfants inscrits à l’École, le prix de la scolarité pour le 2ème enfant est réduit de 20 %. Pour trois enfants ou plus, le prix de la scolarité est réduit de 30 % par enfant à partir du 3ème.
B31: MONTANT DE L'UNITE DU CENTRE DE LOISIRS EN FONCTION DU QF
D33: REPAS | F33: QF : A | G33: QF : B à D | I33: QF : E à H | J33: QF I à K | K33: QF : L
D34: =PrixRepasCL -> 4.85 | F34: =Donnees!B74 -> 2.73 | G34: =Donnees!C74 -> 2.79 | I34: =Donnees!F74 -> 2.85 | J34: =Donnees!J74 -> 2.91 | K34: =Donnees!M74 -> 2.97
B36: REDUCTION : FONCTION DES UNITES CONSOMMEES A LA SEMAINE
F38: 1 à 4 | G38: 5 | I38: 6 à 11 | J38: 12 à 16 | K38: 17 à 20
F39: ---- | G39: =Donnees!L55 -> 0.19 | I39: =Donnees!L56 -> 0.23 | J39: =Donnees!L61 -> 0.3 | K39: =Donnees!L66 -> 0.36
B42: CRPA - 4-6 Avenue d’Alembert – 92160 ANTONY
B43: Téléphone 01 43 50 13 83 - Mél : inscription@ecolenouvelle.fr

Sheet Page 5 (Synthese)
D1: CENTRE DE RECHERCHE DE PEDAGOGIE ACTIVE DENIS COUTROT
B3: ESTIMATION DU MONTANT ANNUEL DES FRAIS LIÉS
B4: A LA SCOLARISATION A L'ÉCOLE NOUVELLE D'ANTONY
B7: SYNTHESE DES RENSEIGNEMENTS
C8: =IF(ValResCha=0,"","- Famille"&IF(FamilleMonoP="Oui"," monoparentale","")&" composée de "&NbAdulte&IF(NbAdulte>1," adultes"," adulte")&" et de "&NbEnfant&IF(NbEnfant>1," enfants"," enfant")&IF(EnfMDPH="Oui"," dont un enfant est handicapé.",".")) -> 
C9: =IF(ValResCha=0,"","- "&NbEnfENA&" enfant"&IF(NbEnfENA>1,"s seront scolarisés"," sera scolarisé")&" à l'École Nouvelle d'Antony.") -> 
B11: AU NIVEAU DE LA SCOLARITÉ
C12: =IF(ValResCha=0,"","- Nombre de parts calculé : "&NbPart) -> 
C13: =IF(ValResCha=0,"","- Ressources de la famille : "&TotalA&" € - Charges de la famille : "&TotalB&" € - 'Budget' : "&TotalA-TotalB&" €.") -> 
C14: =IF(ValResCha=0,"","- Quotient Familial = "&ROUND((TotalA-TotalB)/NbPart,0)&" €, d'où Tranche QF = "&Donnees!D14) ->  | I14: Annuel | J14: En 3 Fois | K14: En 10 Fois
C16: =IF(ValResCha=0,"","* Fournitures Pédagogiques : ") ->  | I16: =IF(ValResCha=0,"",FourPeda*NbEnfENA) ->  | J16: =IF(ValResCha=0,"",I16/3) ->  | K16: =IF(ValResCha=0,"",I16/10) -> 
C17: =IF(ValResCha=0,"","* Scolarité du 1er enfant :") ->  | I17: =IF(ValResCha=0,"",CoutSco) ->  | J17: =IF(ValResCha=0,"",I17/3) ->  | K17: =IF(ValResCha=0,"",I17/10) -> 
C18: =IF(ValResCha=0,"",IF(NbEnfENA<=1,"","* Scolarité du 2ème enfant (20% de réduction) :")) ->  | I18: =IF($C18<>"",ROUND(I17*0.8,0),"") ->  | J18: =IF($C18<>"",ROUND(J17*0.8,0),"") ->  | K18: =IF($C18<>"",I18/10,"") -> 
C19: =IF(ValResCha=0,"",IF(NbEnfENA<=2,"","* Scolarité du 3ème enfant (30% de réduction) :")) ->  | I19: =IF($C19<>"",ROUND(I17*0.7,0),"") ->  | J19: =IF($C19<>"",ROUND(J17*0.7,0),"") ->  | K19: =IF($C19<>"",I19/10,"") -> 
I20: =IF(ValResCha=1,SUM(I16:I19),"") ->  | J20: =IF(ValResCha=1,SUM(J16:J19),"") ->  | K20: =IF(ValResCha=1,SUM(K16:K19),"") -> 
B22: AU NIVEAU DE LA RESTAURATION SCOLAIRE
C23: =IF(ValResCha=0,"","- Nombre d'enfants externes : "&NbEnfExt) -> 
C24: =IF(ValResCha=0,"","- Nombre d'enfant"&IF(NbEnfRepas>1,"s","")&" demi-pensionnaire"&IF(NbEnfRepas>1,"s","")&" (repas du traiteur) : "&NbEnfRepas) -> 
C25: =IF(ValResCha=0,"","- Nombre d'enfant"&IF(NbEnfRepasM>1,"s","")&" amenant leur repas : "&NbEnfRepasM) ->  | I25: Annuel | J25: En 3 Fois | K25: En 10 Fois
C27: =IF(ValResCha=0,"","* Frais demi-pensionnaires (repas du traiteur) : ") ->  | I27: =IF(ValResCha=0,"",IF(NbEnfRepas=0,"---",Donnees!S40*NbEnfRepas)) ->  | J27: =IF(ValResCha=0,"",IF(I27="---","---",I27/3)) ->  | K27: =IF(ValResCha=0,"",IF(I27="---","---",I27/10)) -> 
C28: =IF(ValResCha=0,"","* Frais de surveillance (repas de la maison) : ") ->  | I28: =IF(ValResCha=0,"",IF(OR(NbEnfRepasM=0,NbEnfRepasM="---"),"---",Donnees!S41*NbEnfRepasM)) ->  | J28: =IF(ValResCha=0,"",IF(I28="---","---",I28/3)) ->  | K28: =IF(ValResCha=0,"",IF(I28="---","---",I28/10)) -> 
I29: =IF(ValResCha=1,SUM(I27:I28),"") ->  | J29: =IF(ValResCha=1,SUM(J27:J28),"") ->  | K29: =IF(ValResCha=1,SUM(K27:K28),"") -> 
B31: BUDGET ANNUEL POUR L'ECOLE
I32: Annuel | J32: En 3 Fois | K32: En 10 Fois
I33: =IF(ValResCha=0,"",I29+I20) ->  | J33: =IF(ValResCha=0,"",J29+J20) ->  | K33: =IF(ValResCha=0,"",K29+K20) -> 
J34: =IF(ValResCha=0,"","Paiement par chèque ou virement bancaire en Octobre "&LEFT(AnSN1,4)&", Janvier et Avril "&RIGHT(AnSN1,4)&".") -> 
K35: =IF(ValResCha=0,"","Paiement par prélèvement automatique (le 8 du mois) entre Octobre "&LEFT(AnSN1,4)&" et Juillet "&RIGHT(AnSN1,4)&".") -> 
B37: BUDGET ANNUEL POUR LE CENTRE DE LOISIRS
C38: =IF(ValResCha=0,"",IF(NbEnfCL=0,"Pas de Fréquentation du Centre de Loisirs","- Nombre d'enfant"&(IF(NbEnfCL>1,"s","")&" fréquentant le Centre de Loisirs : "&NbEnfCL&" - Prix de l'unité lié au QF : "&TEXT(PxUFam,"#,00")&" €."))) -> 
C39: =IF(ValResCha=0,"",IF(NbEnfCL=0,"","- Unité"&IF(NbUSem>1,"s consommées"," consommée")&" sur une semaine [par enfant] : "&NbUSem&" - Réduction : "&PourCentReduc*100&" %.")) -> 
C40: =IF(ValResCha=0,"",IF(NbEnfCL=0,"",IF(RepasCL="Non","- Pas de repas du traiteur pris au Centre de Loisirs.","- Repas du traiteur pris au Centre de Loisirs."))) ->  | J40: Repas | K40: Présence
C42: =IF(ValResCha=0,"",IF(NbEnfCL=0,"","* Coût de Septembre à Décembre "&LEFT(AnSN1,4)&" [2 périodes - 7+7 semaines] :")) ->  | J42: =IF(ValResCha=0,"",IF(RepasCL="Oui",14*PrixRepasCL*NbEnfCL,"---")) ->  | K42: =IF(ValResCha=0,"",IF(NbEnfCL>0,NbUSem*NbEnfCL*14*PxUFam*(1-PourCentReduc),"---")) -> 
C43: =IF(ValResCha=0,"",IF(NbEnfCL=0,"","* Coût de Janvier à Avril "&RIGHT(AnSN1,4)&" [2 périodes - 7+6 semaines] :")) ->  | J43: =IF(ValResCha=0,"",IF(RepasCL="Oui",13*NbEnfCL*PrixRepasCL,"---")) ->  | K43: =IF(ValResCha=0,"",IF(NbEnfCL>0,NbUSem*NbEnfCL*13*PxUFam*(1-PourCentReduc),"---")) -> 
C44: =IF(ValResCha=0,"",IF(NbEnfCL=0,"","* Coût d'Avril à Juillet "&RIGHT(AnSN1,4)&" [1 période - 9 semaines] :")) ->  | J44: =IF(ValResCha=0,"",IF(RepasCL="Oui",9*NbEnfCL*PrixRepasCL,"---")) ->  | K44: =IF(ValResCha=0,"",IF(NbEnfCL>0,NbUSem*NbEnfCL*9*PxUFam*(1-PourCentReduc),"---")) -> 
H45: =IF(ValResCha=0,"",IF(J45>0,"Budget Total Annuel Prévisionnel : ","Budget Annuel Prévisionnel : ")) ->  | I45: =IF(ValResCha=0,"",IF(J45<>0,J45+K45,"")) ->  | J45: =IF(ValResCha=1,SUM(J42:J44),"") ->  | K45: =IF(ValResCha=1,SUM(K42:K44),"") -> 
B48: CRPA - 4-6 Avenue d’Alembert – 92160 ANTONY
B49: Téléphone 01 43 50 13 83 - Mél : inscription@ecolenouvelle.fr

Sheet Donnees (hidden)
A1: Données Récupérées des SAISIES dans les FEUILLES | J1: (Fichier et Macros : Version du 07/11/2023) | P1: =AnSN -> 2023/2024 | R1: =AnSN1 -> 2024/2025 | Y1: % Aug. Sur 1 an
T2: =W35/W23-1 -> 0.02830803613 | U2: Variation Indice Insee (Contrat API) {Connus au 1er Septembre} | W2: Indice 1762316
A3: Nb. d'Enfants à l'ENA : | D3: =NbEnfENA -> 0 | G3: Cellule sur fond Jaune = Saisie | W3: 102.94 | X3: 2021-01-01
A4: Coeff. Coût Scolarité | D4: =CHOOSE(NbEnfENA,1,1.8,2.5,3.2) ->  | G4: Cellule sur Fond Bleu = Calcul | O4: Indice INSEE Cantines (001762316) | P4: =W23 -> 107.39 | Q4: (09/2022) | R4: =W35 -> 110.43 | S4: (09/2023) | T4: INSEE Indice Cantine (Contrat API) | W4: 99.2 | X4: 2021-02-01
A5: Nombre Enfants : | D5: =IF(NbEnfant<>"",NbEnfant,"") ->  | W5: 99.27 | X5: 2021-03-01
A6: Nombre Adultes | D6: =NbAdulte -> 0 | G6: Formulaire Valide ?? | J6: =IF(AND(NbEnfant>0,NbAdulte>0,NbEnfENA>0,EnfMDPH<>"",FamilleMonoP<>"",NbEnfTm<>"",NbEnfRepas<>""),1,0) -> 0 | K6: (0 = Non) | M6: Prix du Repas : | P6: 4.77 | Q6: (Par Jour) | R6: =ROUNDUP((P6*R4/P4),2) -> 4.91 | S6: (Par Jour) | W6: 99.42 | X6: 2021-04-01
A7: Dont Enfant Handicap | D7: =IF(EnfMDPH<>"",EnfMDPH,"") ->  | G7: Saisie Complète CLAE ?? | J7: =IF(AND('Page 2 (Renseignements)'!I32<>"",'Page 2 (Renseignements)'!I33<>"",'Page 2 (Renseignements)'!I34<>"",RepasCL<>"",'Page 2 (Renseignements)'!I36<>"",ValForm=1),1,0) -> 0 | K7: (0 = Non) | O7: Prix du Pain : | Q7: (Par Jour) | S7: (Par Jour) | W7: 99.28 | X7: 2021-05-01
A8: Adulte Isolé | D8: =IF(FamilleMonoP<>"",FamilleMonoP,"") ->  | G8: Case à Cocher CLAE : | J8: FALSE | K8: (VRAI=Cochée) | O8: Total --> | P8: =SUM(P6:P7) -> 4.77 | R8: =SUM(R6:R7) -> 4.91 | S8: (Repas sur 36 semaines et 4 jours / semaine) | W8: 99.48 | X8: 2021-06-01
A9: Nombre de Part | D9: =IF(ValForm=1,NbEnfant+NbAdulte+IF(EnfMDPH="Oui",0.5,0)+IF(FamilleMonoP="Oui",0.5,0),"") ->  | G9: Saisie Ress./Charges : | J9: =IF(ValForm=0,0,IF(OR(TotalA="---",TotalB="---"),0,IF(TotalA-TotalB<=0,0,1))) -> 0 | K9: (0 = Non) | O9: Prix Restauration : | P9: =ROUNDUP(P8*36*4,0) -> 687 | Q9: (Par Année) | R9: =ROUNDUP($R$8*36*4,0)*$U$11 -> 708 | S9: (Par Année) | W9: 99.43 | X9: 2021-07-01
R10: Attention : | W10: 99.57 | X10: 2021-08-01
A11: Total Ressources | D11: =TotalA -> --- | O11: Prix Restauration | P11: =P9/3 -> 229 | Q11: (En 3 Fois) | R11: Si montant ci-dessus (par année) est forcé à 0 (cellule U11 à droite égale = 0) , indexation prix du repas (avec pain) sur Indice INSEE (cellule P19 = Coût de la vie) pour Année scolaire N+1 sinon prise en compte indice INSEE des cantines (contrat API). | U11: 1 | W11: 105.02 | X11: 2021-09-01
A12: Total Charges | D12: =TotalB -> --- | O12: Prix Restauration | P12: =ROUND(P11*3/10,1) -> 68.7 | Q12: (En 10 Fois) | W12: 105.19 | X12: 2021-10-01
A13: QF = | D13: =IF(AND(ValForm=1,ValResCha=1),ROUND((TotalA-TotalB)/NbPart,0),"") ->  | W13: 105.33 | X13: 2021-11-01
A14: Tranche = | D14: =IF(ISERROR(MATCH(D13-1,R28:R39,1))=TRUE,"A",CHAR(MATCH(D13-1,R28:R39,1)+65)) -> A | O14: Prix Surveillance : | P14: =196*3 -> 588 | Q14: (Par Année) | W14: 105.31 | X14: 2021-12-01
A15: Scolarité = | D15: =IF(ISERROR(MATCH(D13-1,R28:R39,1))=TRUE,S28,VLOOKUP(Tranche,P28:S39,4,0)) -> 585 | W15: 105.53 | X15: 2022-01-01 | Y15: =W15/W3-1 -> 0.02516028755
O16: Surveillance & Repas | P16: =ROUND((P14+P9)/3,0) -> 425 | Q16: (En 3 Fois) | W16: 105.39 | X16: 2022-02-01 | Y16: =W16/W4-1 -> 0.06239919355
A17: ="Unité CLAE ("&AnSN&")" -> Unité CLAE (2023/2024) | D17: =Uclae -> 2.75 | F17: QF=E | O17: Surveillance & Repas | P17: =ROUND(P16*3/10,1) -> 127.5 | Q17: (En 10 Fois) | W17: 105.76 | X17: 2022-03-01 | Y17: 0.06537725395
A18: ="Unité CLAE ("&AnSN1&")" -> Unité CLAE (2024/2025) | D18: =F74 -> 2.85 | F18: QF=E | W18: 105.71 | X18: 2022-04-01 | Y18: 0.0632669483
A19: ="Unité CLAE Famille : " -> Unité CLAE Famille : | D19: =HLOOKUP(Tranche,TabQF,2,0) -> 2.73 | O19: Variation Taux INSEE IPC 6537535 (Prix à la consommation) | P19: 3 | Q19: (en %) | W19: 105.74 | X19: 2022-05-01 | Y19: 0.06506849315
A20: Nb Enfants au CLAE | D20: =NbEnfCL -> 0 | O20: (Sur un an, au mois de Avril --> Voir RI) | W20: 105.71 | X20: 2022-06-01 | Y20: 0.0626256534
A21: Moyenne Unités / Semaine | D21: =IF(NbUSem<>"",NbUSem,"") -> --- | W21: 105.95 | X21: 2022-07-01 | Y21: 0.06557377049
A22: Repas pris au CLAE | D22: =PxRepasCL -> 0 | W22: 106.07 | X22: 2022-08-01 | Y22: =W22/W10-1 -> 0.06528070704
A23: Réduction CLAE | D23: =IF(NbUSem<=4,VLOOKUP(4,TabReduc,2,1),VLOOKUP(NbUSem,TabReduc,2,1)) ->  | W23: 107.39 | X23: 2022-09-01 | Y23: =W23/W11-1 -> 0.02256713007
I24: ANNÉE SCOLAIRE (N) | J24: 2023/2024 | Q24: ANNÉE SCOLAIRE (N+1) | R24: =LEFT(J24,4)+1&"/"&RIGHT(J24,4)+1 -> 2024/2025 | W24: 107.7 | X24: 2022-10-01 | Y24: 0.0238615838
W25: 107.7 | X25: 2022-11-01 | Y25: 0.02250071205
F26: TRANCHE | H26: QUOTIENT FAMILIAL (QF) | K26: TARIF | P26: TRANCHE | Q26: QUOTIENT FAMILIAL (QF) | S26: TARIF UN (1) ENFANT | W26: 107.74 | X26: 2022-12-01 | Y26: 0.02307473174
H27: Mini | J27: Maxi | K27: (Annuel) | L27: (En 3 F.) | M27: (En 10 F.) | Q27: Mini | R27: Maxi | S27: (Annuel) | T27: (En 3 Fois) | U27: (En 10 Fois) | W27: 108.51 | X27: 2023-01-01 | Y27: =W27/W15-1 -> 0.02823841562
F28: A | H28: De 1 € | J28: 4549 | K28: =L28*3 -> 567 | L28: 189 | M28: =ROUND(L28*3/10,1) -> 56.7 | P28: A | Q28: De 1 € | R28: =ROUND(J28*(1+Taux_INSEE/100),0) -> 4685 | S28: =ROUND(T28*3,0) -> 585 | T28: =ROUND(L28*(1+Taux_INSEE/100),0) -> 195 | U28: =ROUND(T28*3/10,1) -> 58.5 | W28: 108.57 | X28: 2023-02-01 | Y28: =W28/W16-1 -> 0.03017364076
F29: B | H29: =J28+1 -> 4550 | J29: 5525 | K29: =L29*3 -> 810 | L29: 270 | M29: 81 | P29: B | Q29: =R28+1 -> 4686 | R29: 5691 | S29: =ROUND(T29*3,0) -> 834 | T29: 278 | U29: =ROUND(T29*3/10,1) -> 83.4 | W29: 108.66 | X29: 2023-03-01 | Y29: 0.02742057489
F30: C | H30: 5526 | J30: 6638 | K30: =L30*3 -> 1083 | L30: 361 | M30: 108.3 | P30: C | Q30: =R29+1 -> 5692 | R30: 6837 | S30: 1116 | T30: 372 | U30: 111.6 | W30: 108.77 | X30: 2023-04-01 | Y30: 0.02894711948
F31: D | H31: 6639 | J31: 7751 | K31: =L31*3 -> 1356 | L31: 452 | M31: 135.6 | P31: D | Q31: 6838 | R31: 7984 | S31: 1398 | T31: 466 | U31: 139.8 | W31: 108.92 | X31: 2023-05-01 | Y31: 0.03007376584
F32: E | H32: 7752 | J32: 8851 | K32: =L32*3 -> 1650 | L32: 550 | M32: 165 | P32: E | Q32: 7985 | R32: 9117 | S32: 1701 | T32: 567 | U32: 170.1 | W32: 109.12 | X32: 2023-06-01 | Y32: 0.03225806452
F33: F | H33: 8852 | J33: 10427 | K33: =L33*3 -> 1923 | L33: 641 | M33: 192.3 | P33: F | Q33: 9118 | R33: 10740 | S33: 1980 | T33: 660 | U33: 198 | W33: 109.26 | X33: 2023-07-01 | Y33: 0.03124115149
F34: G | H34: 10428 | J34: 12119 | K34: 2286 | L34: 762 | M34: 228.6 | P34: G | Q34: 10741 | R34: 12483 | S34: 2355 | T34: 785 | U34: 235.5 | W34: 109.55 | X34: 2023-08-01 | Y34: =W34/W22-1 -> 0.03280852267
F35: H | H35: 12120 | J35: 14172 | K35: 2559 | L35: 853 | M35: 255.9 | P35: H | Q35: 12484 | R35: 14597 | S35: 2637 | T35: 879 | U35: 263.7 | W35: 110.43 | X35: 2023-09-01 | Y35: =W35/W23-1 -> 0.02830803613
F36: I | H36: 14173 | J36: 16553 | K36: 2904 | L36: 968 | M36: 290.4 | P36: I | Q36: 14598 | R36: 17050 | S36: 2991 | T36: 997 | U36: 299.1
F37: J | H37: 16554 | J37: 19485 | K37: 3297 | L37: 1099 | M37: 329.7 | P37: J | Q37: 17051 | R37: 20070 | S37: 3396 | T37: 1132 | U37: 339.6
F38: K | H38: 19486 | J38: 22739 | K38: 3600 | L38: 1200 | M38: 360 | P38: K | Q38: 20071 | R38: 23421 | S38: 3708 | T38: 1236 | U38: 370.8
F39: L | H39: ="> "&J38&" €" -> > 22739 € | K39: 4008 | L39: 1336 | M39: 400.8 | P39: L | Q39: ="Plus de "&TEXT(R38,"## ##0")&" €" -> Plus de 23 421 € | S39: 4128 | T39: 1376 | U39: 412.8
F40: Prix de la restauration scolaire | K40: =L40*3 -> 1275 | L40: =ROUNDUP(P11+P14/3,2) -> 425 | M40: 127.5 | P40: Prix de la restauration scolaire | S40: =ROUND(T40*3,0) -> 1314 | T40: =IF($R$9=0,ROUND(L40*(1+Taux_INSEE/100),0),ROUNDUP(R8*36*4/3+T41,0)) -> 438 | U40: =ROUND(T40*3/10,1) -> 131.4
F41: Ou de la Surveillance du Repas seule | K41: =L41*3 -> 588 | L41: =P14/3 -> 196 | M41: 58.8 | P41: Ou de la Surveillance du Repas seule | S41: 606 | T41: =ROUNDUP(L41*(1+Taux_INSEE/100),0) -> 202 | U41: 60.6
F42: Fournitures Pédagogiques | K42: =L42*3 -> 60 | L42: 20 | M42: 6 | P42: Fournitures Pédagogiques | S42: 63 | T42: =ROUNDUP(L42*(1+Taux_INSEE/100),0) -> 21 | U42: 6.3
F43: Prix de la restauration scolaire (seule) | K43: =L43*3 -> 687 | L43: =L40-L41 -> 229 | M43: =M40-M41 -> 68.7 | P43: Prix de la restauration scolaire (seule) | S43: =ROUND(T43*3,0) -> 708 | T43: =T40-T41 -> 236 | U43: =U40-U41 -> 70.8
I46: TARIFS CLAE - ANNEE SCOLAIRE (N) | J46: =AnSN -> 2023/2024 | P46: TRANCHE | Q46: QUOTIENT FAMILIAL (QF) | S46: TARIF DEUX (2) ENFANTS
L47: Ecart | M47: 0.05 | Q47: Mini | R47: Maxi | S47: (Annuel) | T47: (En 3 Fois) | U47: (En 10 Fois)
B48: A | C48: B | D48: C | E48: D | F48: E | G48: F | H48: G | I48: H | J48: I | K48: J | L48: K | M48: L | P48: A | Q48: De 1 € | R48: =R28 -> 4685 | S48: =ROUND(T48*3,0) -> 1053 | T48: =ROUND(T28*(100%+80%),0) -> 351 | U48: =ROUND(T48*3/10,1) -> 105.3
B49: =C49-Ecart -> 2.65 | C49: =D49 -> 2.7 | D49: =E49 -> 2.7 | E49: =F49-Ecart -> 2.7 | F49: 2.75 | G49: =F49 -> 2.75 | H49: =G49 -> 2.75 | I49: =H49 -> 2.75 | J49: =I49+Ecart -> 2.8 | K49: =J49 -> 2.8 | L49: =K49 -> 2.8 | M49: =L49+Ecart -> 2.85 | P49: B | Q49: =R48+1 -> 4686 | R49: =R29 -> 5691 | S49: =ROUND(T49*3,0) -> 1500 | T49: =ROUND(T29*(100%+80%),0) -> 500 | U49: =ROUND(T49*3/10,1) -> 150
P50: C | Q50: =R49+1 -> 5692 | R50: 6837 | S50: 2010 | T50: 670 | U50: 201
D51: % DE REDUCTION | E51: =AnSN -> 2023/2024 | H51: REPAS MERCREDI | K51: % DE REDUCTION | L51: =AnSN1 -> 2024/2025 | P51: D | Q51: 6838 | R51: 7984 | S51: 2517 | T51: 839 | U51: 251.7
P52: E | Q52: 7985 | R52: 9117 | S52: 3063 | T52: 1021 | U52: 306.3
B53: Unités | D53: Réduc. | H53: =AnSN -> 2023/2024 | J53: Unités | L53: Réduc. | P53: F | Q53: 9118 | R53: 10740 | S53: 3564 | T53: 1188 | U53: 356.4
B54: 0 | C54: 4 | D54: 0 | H54: 4.69 | J54: =B54 -> 0 | K54: =C54 -> 4 | L54: =D54 -> 0 | P54: G | Q54: 10741 | R54: 12483 | S54: 4239 | T54: 1413 | U54: 423.9
B55: 5 | C55: 5 | D55: 0.19 | J55: 5 | K55: 5 | L55: 0.19 | P55: H | Q55: 12484 | R55: 14597 | S55: 4746 | T55: 1582 | U55: 474.6
B56: 6 | C56: 6 | D56: 0.23 | H56: =AnSN1 -> 2024/2025 | J56: 6 | K56: 6 | L56: 0.23 | P56: I | Q56: 14598 | R56: 17050 | S56: 5385 | T56: 1795 | U56: 538.5
B57: 6 | C57: 7 | D57: 0.23 | H57: =MROUND(H54*(100+Taux_INSEE)/100,0.05) -> 4.85 | J57: 6 | K57: 7 | L57: 0.23 | P57: J | Q57: 17051 | R57: 20070 | S57: 6114 | T57: 2038 | U57: 611.4
B58: 6 | C58: 8 | D58: 0.23 | J58: 6 | K58: 8 | L58: 0.23 | P58: K | Q58: 20071 | R58: 23421 | S58: 6675 | T58: 2225 | U58: 667.5
B59: 6 | C59: 9 | D59: 0.23 | J59: 6 | K59: 9 | L59: 0.23 | P59: L | Q59: ="Plus de "&TEXT(R58,"## ##0")&" €" -> Plus de 23 421 € | S59: 7431 | T59: 2477 | U59: 743.1
B60: 6 | C60: 11 | D60: 0.23 | J60: 6 | K60: 11 | L60: =D60 -> 0.23 | P60: Prix de la restauration scolaire | S60: 2628 | T60: =T40*2 -> 876 | U60: =ROUND(T60*3/10,1) -> 262.8
B61: 12 | C61: 12 | D61: 0.23 | J61: 12 | K61: 12 | L61: 0.3 | P61: Ou de la Surveillance du Repas seule | S61: 1212 | T61: =T41*2 -> 404 | U61: =ROUND(T61*3/10,1) -> 121.2
B62: 12 | C62: 13 | D62: 0.29 | J62: 12 | K62: 13 | L62: 0.3 | P62: Fournitures Pédagogiques | S62: 126 | T62: =T42*2 -> 42 | U62: =ROUND(T62*3/10,1) -> 12.6
B63: 12 | C63: 14 | D63: 0.29 | J63: 12 | K63: 14 | L63: 0.3 | P63: Prix de la restauration scolaire (seule) | S63: 1416 | T63: =T43*2 -> 472 | U63: =U60-U61 -> 141.6
B64: 12 | C64: 15 | D64: 0.29 | J64: =B64 -> 12 | K64: 15 | L64: 0.3
B65: 12 | C65: 16 | D65: 0.29 | J65: 12 | K65: 16 | L65: 0.3
B66: 17 | C66: 17 | D66: 0.34 | J66: 17 | K66: 17 | L66: 0.36 | P66: TRANCHE | Q66: QUOTIENT FAMILIAL (QF) | S66: TARIF TROIS (3) ENFANTS
B67: 17 | C67: 18 | D67: 0.34 | J67: 17 | K67: 18 | L67: 0.36 | Q67: Mini | R67: Maxi | S67: (Annuel) | T67: (En 3 Fois) | U67: (En 10 Fois)
B68: 17 | C68: 19 | D68: 0.34 | J68: 17 | K68: 19 | L68: 0.36 | P68: A | Q68: De 1 € | R68: =R48 -> 4685 | S68: =ROUND(T68*3,0) -> 2634 | T68: =ROUND(T48*(1+80%+70%),0) -> 878 | U68: =ROUND(T68*3/10,1) -> 263.4
B69: 17 | C69: 20 | D69: 0.34 | J69: 17 | K69: 20 | L69: 0.36 | P69: B | Q69: =R68+1 -> 4686 | R69: =R49 -> 5691 | S69: =ROUND(T69*3,0) -> 2700 | T69: =ROUND(T49*1.8,0) -> 900 | U69: =ROUND(T69*3/10,1) -> 270
P70: C | Q70: =R69+1 -> 5692 | R70: 6837 | S70: 3618 | T70: 1206 | U70: 361.8
I71: TARIFS CLAE - ANNEE SCOLAIRE (N+1) | J71: =AnSN1 -> 2024/2025 | P71: D | Q71: 6838 | R71: 7984 | S71: 4530 | T71: 1510 | U71: 453
L72: Ecart | M72: =ROUNDUP(Ecart*(100+Taux_INSEE)/100,3)*0+0.06 -> 0.06 | P72: E | Q72: 7985 | R72: 9117 | S72: 5514 | T72: 1838 | U72: 551.4
B73: A | C73: B | D73: C | E73: D | F73: E | G73: F | H73: G | I73: H | J73: I | K73: J | L73: K | M73: L | P73: F | Q73: 9118 | R73: 10740 | S73: 6414 | T73: 2138 | U73: 641.4
B74: =C74-Ecart1 -> 2.73 | C74: =D74 -> 2.79 | D74: =E74 -> 2.79 | E74: =F74-Ecart1 -> 2.79 | F74: =IF(F76>0,F76,MROUND(F75,0.05)) -> 2.85 | G74: =F74 -> 2.85 | H74: =G74 -> 2.85 | I74: =H74 -> 2.85 | J74: =I74+Ecart1 -> 2.91 | K74: =J74 -> 2.91 | L74: =K74 -> 2.91 | M74: =L74+Ecart1 -> 2.97 | P74: G | Q74: 10741 | R74: 12483 | S74: 7629 | T74: 2543 | U74: 762.9
E75: Calcul avec Taux INSEE : | F75: =ROUNDUP(Uclae*(100+Taux_INSEE)/100,2) -> 2.84 | P75: H | Q75: 12484 | R75: 14597 | S75: 8544 | T75: 2848 | U75: 854.4
G76: <== saisir un montant arrondi {en + ou -} en cellule F76. Dans ce cas, c'est la valeur de cette cellule qui est prise en compte en F74 ou laisser le calcul de la cellule F74 en ne saisissant rien en F76. | P76: I | Q76: 14598 | R76: 17050 | S76: 9693 | T76: 3231 | U76: 969.3
P77: J | Q77: 17051 | R77: 20070 | S77: 11004 | T77: 3668 | U77: 1100.4
P78: K | Q78: 20071 | R78: 23421 | S78: 12015 | T78: 4005 | U78: 1201.5
P79: L | Q79: ="Plus de "&TEXT(R78,"## ##0")&" €" -> Plus de 23 421 € | S79: 13377 | T79: 4459 | U79: 1337.7
P80: Prix de la restauration scolaire | S80: 3942 | T80: =T40*3 -> 1314 | U80: =ROUND(T80*3/10,1) -> 394.2
P81: Ou de la Surveillance du Repas seule | S81: 1818 | T81: =T41*3 -> 606 | U81: =ROUND(T81*3/10,1) -> 181.8
P82: Fournitures Pédagogiques | S82: 189 | T82: =T42*3 -> 63 | U82: =ROUND(T82*3/10,1) -> 18.9
P83: Prix de la restauration scolaire (seule) | S83: 2124 | T83: =T43*3 -> 708 | U83: =U80-U81 -> 212.4
P86: TRANCHE | Q86: QUOTIENT FAMILIAL (QF) | S86: TARIF QUATRE (4) ENFANTS
Q87: Mini | R87: Maxi | S87: (Annuel) | T87: (En 3 Fois) | U87: (En 10 Fois)
P88: A | Q88: De 1 € | R88: =R68 -> 4685 | S88: =ROUND(T88*3,0) -> 8430 | T88: =ROUND(T68*(1+80%+70%+70%),0) -> 2810 | U88: =ROUND(T88*3/10,1) -> 843
P89: B | Q89: =R88+1 -> 4686 | R89: =R69 -> 5691 | S89: =ROUND(T89*3,0) -> 8640 | T89: =ROUND(T69*(1+80%+70%+70%),0) -> 2880 | U89: =ROUND(T89*3/10,1) -> 864
P90: C | Q90: =R89+1 -> 5692 | R90: 6837 | S90: 11577 | T90: 3859 | U90: 1157.7
P91: D | Q91: 6838 | R91: 7984 | S91: 14496 | T91: 4832 | U91: 1449.6
P92: E | Q92: 7985 | R92: 9117 | S92: 17646 | T92: 5882 | U92: 1764.6
P93: F | Q93: 9118 | R93: 10740 | S93: 20526 | T93: 6842 | U93: 2052.6
P94: G | Q94: 10741 | R94: 12483 | S94: 24414 | T94: 8138 | U94: 2441.4
P95: H | Q95: 12484 | R95: 14597 | S95: 27342 | T95: 9114 | U95: 2734.2
P96: I | Q96: 14598 | R96: 17050 | S96: 31017 | T96: 10339 | U96: 3101.7
P97: J | Q97: 17051 | R97: 20070 | S97: 35214 | T97: 11738 | U97: 3521.4
P98: K | Q98: 20071 | R98: 23421 | S98: 38448 | T98: 12816 | U98: 3844.8
P99: L | Q99: ="+ de "&TEXT(R98,"## ##0")&" €" -> + de 23 421 € | S99: 42807 | T99: 14269 | U99: 4280.7
P100: Prix de la restauration scolaire | S100: 5256 | T100: =T40*4 -> 1752 | U100: =ROUND(T100*3/10,1) -> 525.6
P101: Ou de la Surveillance du Repas seule | S101: 2424 | T101: =T41*4 -> 808 | U101: =ROUND(T101*3/10,1) -> 242.4
P102: Fournitures Pédagogiques | S102: 252 | T102: =T42*4 -> 84 | U102: =ROUND(T102*3/10,1) -> 25.2
P103: Prix de la restauration scolaire (seule) | S103: 2832 | T103: =T43*4 -> 944 | U103: =U100-U101 -> 283.2
